Cogmind - Beta 14 @@@ ROGUE MODE // 2024.11.02 @ 22:30:15 Player: CanadianCogs Result: Destroyed by G-50 Soldier with Heavy Laser Performance ------------- Evolutions (5) 2500 Regions Visited (11) 2200 Robots Destroyed (27) 135 Value Destroyed (695) 695 Prototype IDs (10) 200 Alien Tech Used (0) 0 Bonus (1844) 1844 TOTAL SCORE: 7574 Bonus ------- Follower Combat Kills 144 Entered Garrisons 400 Used RIF Installer 500 Entered DSFs 500 Aligned with FarCom 300 Cogmind --------- Core Integrity 0/1000 Matter 136/300 Energy 90/100 System Corruption 4% Temperature Cool (27) Movement Core (50) Location -5/Garrison Parts ------- > --- POWER (1) -------- (None) > --- PROPULSION (6) --- (None) > --- UTILITY (8) ------ (None) > --- WEAPON (2) ------- Remote Datajack > --- INVENTORY (5) ---- Smartbomb Launcher Peak State ------------ > --- POWER ------------ Reinforced Deuterium Engine > --- PROPULSION ------- Improved VSS Leg Improved VSS Leg Improved VSS Leg Gyrokinetic Inverter Gyrokinetic Inverter Linear Gravjet > --- UTILITY ---------- Machine Analyzer Signal Interpreter Advanced Signal Interpreter Advanced Targeting Computer Layered Medium Armor Plating Bomb Drone Bay > --- WEAPON ----------- Disruptor Cannon Disruptor Cannon > --- INVENTORY -------- Smartbomb Launcher Smartbomb Launcher Remote Datajack [Rating: 82] Favorites ----------- Power Light Ion Engine Engine Light Ion Engine Propulsion Improved VSS Leg Treads Light Treads Leg Improved VSS Leg Hover Unit Hover Unit Utility Signal Interpreter Device Advanced Weight Redist. System Storage Small Storage Unit Processor Signal Interpreter Protection Layered Medium Armor Plating Weapon Light Assault Rifle Energy Gun Improved Spread Laser Energy Cannon Advanced Beam Cannon Ballistic Gun Light Assault Rifle Launcher Smartbomb Launcher Special Weapon Mining Laser Special Melee Weapon Datajack Build | -11 -10 -10 -10 -9 -8 -8 -7 -6 -6 -5 -5 ------- Run | Yrd Mat Min Exi Min Mat Gar Fac Fac DSF Fac Gar Slots Evolved 10 | . . . . . 4 . 2 2 . 2 . Power . | . . . . . . . . . . . . Propulsion 4 | . . . . . 2 . 2 . . . . Utility 6 | . . . . . 2 . . 2 . 2 . Weapon . | . . . . . . . . . . . . Parts Attached 69 | 7 4 6 4 . 16 . 5 2 12 10 3 Power 4 | 1 1 . . . 1 . . . 1 . . Engine 4 | 1 1 . . . 1 . . . 1 . . Core . | . . . . . . . . . . . . Reactor . | . . . . . . . . . . . . Propulsion 17 | 2 2 . . . 2 . 1 1 6 3 . Treads 2 | 2 . . . . . . . . . . . Leg 9 | . . . . . 1 . 1 1 6 . . Wheel . | . . . . . . . . . . . . Hover 6 | . 2 . . . 1 . . . . 3 . Flight . | . . . . . . . . . . . . Utility 20 | 2 . 3 1 . 7 . 2 . 1 3 1 Device 12 | 1 . 2 1 . 6 . 1 . . 1 . Storage 1 | 1 . . . . . . . . . . . Processor 4 | . . 1 . . 1 . 1 . . 1 . Hackware . | . . . . . . . . . . . . Protection 3 | . . . . . . . . . 1 1 1 Artifact . | . . . . . . . . . . . . Weapon 28 | 2 1 3 3 . 6 . 2 1 4 4 2 Energy Gun 3 | . . . . . 2 . 1 . . . . Energy Cannon 6 | . . . . . 4 . . . . 2 . Ballistic Gun 9 | 2 1 1 1 . . . . 1 3 . . Ballistic Cannon . | . . . . . . . . . . . . Launcher 3 | . . . . . . . . . . 2 1 Special Weapon 5 | . . 1 1 . . . 1 . 1 . 1 Impact Weapon . | . . . . . . . . . . . . Slashing Weapon . | . . . . . . . . . . . . Piercing Weapon . | . . . . . . . . . . . . Special Melee Weapon 2 | . . 1 1 . . . . . . . . Unidentified Prototypes 4 | . . . 1 . 2 . 1 . . . . Parts Lost 18 | . . 3 . . 1 1 3 . 1 5 4 Power 3 | . . 1 . . . 1 . . . 1 . Propulsion 9 | . . 2 . . 1 . 1 . . 2 3 Utility 5 | . . . . . . . 2 . 1 1 1 Weapon 1 | . . . . . . . . . . 1 . Highest Loss Streak 4 | . . 2 . . 1 1 3 . 1 3 4 To Critical Strikes . | . . . . . . . . . . . . Average Slot Usage (%) 66 | . 100 55 55 57 63 64 46 30 54 74 35 Engine 4 | . 14 1 . . 6 4 . . 3 4 . Treads 3 | . 17 . . . . . . . . . . Leg 5 | . . . . . . 9 11 4 17 25 6 Hover 4 | . 10 4 . . 4 . . . . 7 8 Device 12 | . 14 12 14 14 18 18 13 6 6 4 . Storage 3 | . 14 2 . . . . . . . . . Processor 12 | . . 10 14 14 15 18 15 20 20 20 13 Energy Cannon 3 | . . . . . 12 15 . . . 4 . Ballistic Gun 6 | . 28 4 . . . . . . 2 . . Special Weapon 3 | . . 7 13 14 2 . 4 . 2 . . Special Melee Weapon 3 | . . 10 13 14 2 . . . . . . Peak Build Rating 82 | 7 8 8 19 7 24 24 28 26 52 82 57 Average Rating 20 | 4 7 4 6 7 19 21 20 15 30 69 32 On Entrance 15 | . 7 8 5 7 7 24 15 12 17 50 35 Naked Turns 87 | . . 64 . . . . . . . . 23 Heaviest Build 49 | 13 13 12 3 3 18 14 8 . 23 49 20 Greatest Support 97 | 40 40 12 3 3 24 12 33 16 97 91 22 Greatest Overweight (x) 6 | . . . . . 1 1 . . 1 1 6 Average Overweight (x) . | . . . . . . . . . . . . Largest Inventory Capacity 8 | 8 8 8 5 5 5 5 5 5 5 5 5 Average Capacity 5 | 7 8 5 5 5 5 5 5 5 5 5 5 Most Carried 8 | 5 8 8 5 5 5 5 5 5 5 5 5 Average Carried 4 | 1 6 4 4 5 4 5 4 4 4 4 3 Final Capacity 8 | 8 8 5 5 5 5 5 5 5 5 5 5 Final Carried 8 | 1 8 4 5 5 5 5 5 5 5 5 2 Class Distribution -------------------- 100% | Mutant Dominant Class ---------------- Mutant | -10/Materials Mutant | -10/Mines Mutant | -10/Exiles Mutant | -9/Mines Mutant | -8/Materials Mutant | -8/Garrison Mutant | -7/Factory Mutant | -6/Factory Mutant | -6/DSF Mutant | -5/Factory Mutant | -5/Garrison Resources | -11 -10 -10 -10 -9 -8 -8 -7 -6 -6 -5 -5 ----------- Run | Yrd Mat Min Exi Min Mat Gar Fac Fac DSF Fac Gar Matter Collected 726 | 114 127 206 . . 190 . 14 . 75 . . Remotely . | . . . . . . . . . . . . Salvage Created 763 | 19 176 58 . . 299 . 91 . 75 45 . Parts 51 | 3 19 1 . . 13 . 5 . 6 4 . Haulers Intercepted 1 | . 1 . . . . . . . . . . Recyclers Shooed 1 | 1 . . . . . . . . . . . Parts Field Recycled . | . . . . . . . . . . . . Retrieved Matter . | . . . . . . . . . . . . Parts Self-Destructed . | . . . . . . . . . . . . Prevented . | . . . . . . . . . . . . Kills | -11 -10 -10 -10 -9 -8 -8 -7 -6 -6 -5 -5 ------- Run | Yrd Mat Min Exi Min Mat Gar Fac Fac DSF Fac Gar Combat Hostiles Destroyed 20 | . 1 4 . . 8 . 2 . 1 4 . Guns 7 | . 1 3 . . . . 2 . 1 . . Cannons 9 | . . 1 . . 8 . . . . . . AOE 4 | . . . . . . . . . . 4 . Classes Destroyed 10 | 1 5 1 . . 2 . . . 1 . . Builder 2 | . 2 . . . . . . . . . . Tunneler 1 | 1 . . . . . . . . . . . Hauler 1 | . 1 . . . . . . . . . . Operator 1 | . 1 . . . . . . . . . . Watcher 2 | . 1 . . . 1 . . . . . . Swarmer 11 | . . 3 . . 4 . . . . 4 . Grunt 6 | . 1 1 . . 2 . 2 . . . . Brawler 1 | . . . . . 1 . . . . . . Sentry 1 | . . . . . 1 . . . . . . Heavy 1 | . . . . . . . . . 1 . . Best Kill Streak 4 | 1 1 3 . . 4 . 2 . 1 4 . Combat Bots Only 4 | . 1 3 . . 4 . 2 . 1 4 . Max Kills in Single Turn 2 | 1 1 1 . . 1 . 1 . 1 2 . Gunslinging . | . . . . . . . . . . . . Exploded 2 | . . . . . . . . . . 2 . Melee . | . . . . . . . . . . . . Uniques/NPCs Destroyed . | . . . . . . . . . . . . Combat | -11 -10 -10 -10 -9 -8 -8 -7 -6 -6 -5 -5 -------- Run | Yrd Mat Min Exi Min Mat Gar Fac Fac DSF Fac Gar Hostile Shots Fired 511 | . 17 43 . . 50 40 61 . 80 39 181 Missed 196 | . 7 18 . . 13 20 23 . 23 17 75 Damage Taken 5149 | . 98 321 . . 421 226 542 . 1160 513 1868 Core 2030 | . . 126 . . 130 71 401 . 288 101 913 Absorbed by Shields . | . . . . . . . . . . . . Regen/Repaired (Parts) 2 | . 2 . . . . . . . . . . Core Remaining (%) 64 | 100 . . . 49 . 63 42 . 66 . . Volleys Fired 81 | 6 28 12 . . 27 . 6 . . 2 . Largest 2 | 2 2 2 . . 2 . 1 . . 1 . Hottest 136 | 40 40 100 . . 136 . 75 . . 46 . Shots Fired 156 | 12 56 20 . . 53 . 6 . 7 2 . Gun 97 | 12 56 16 . . . . 6 . 7 . . Cannon 52 | . . . . . 52 . . . . . . Launcher 2 | . . . . . . . . . . 2 . Special 5 | . . 4 . . 1 . . . . . . Kinetic 91 | 12 56 16 . . . . . . 7 . . Thermal 59 | . . 4 . . 49 . 6 . . . . Explosive 2 | . . . . . . . . . . 2 . Electromagnetic 4 | . . . . . 4 . . . . . . Robot Hit Streak 11 | 4 9 3 . . 10 . 11 . 10 11 . Robot Miss Streak 6 | 2 6 1 . . 3 . 4 . . . . Penetration Max . | . . . . . . . . . . . . Secondary Targets 1 | . . 1 . . . . . . . . . Max Gunslinging Chain 1 | . . 1 . . . . . . . . . Autonomous 7 | . . . . . . . . . 7 . . Shots Hit Robots 118 | 8 35 11 19 . 31 . 6 . 7 1 . Core Hits 55 | 2 13 7 . . 11 . 13 . 3 5 1 Critical Kills . | . . . . . . . . . . . . Critical Parts Destroyed 1 | . 1 . . . . . . . . . . Critical Strikes 1 | . 1 . . . . . . . . . . Destroy 1 | . 1 . . . . . . . . . . Melee Attacks 19 | . . . 19 . . . . . . . . Impact . | . . . . . . . . . . . . Slashing . | . . . . . . . . . . . . Piercing . | . . . . . . . . . . . . Sneak Attacks 18 | . . . 18 . . . . . . . . Combat Hostiles . | . . . . . . . . . . . . Follow-up Attacks . | . . . . . . . . . . . . Damage Inflicted 1857 | 55 291 100 . . 690 . 129 . 245 334 13 Guns 762 | 55 283 76 . . . . 123 . 225 . . Cannons 690 | . . . . . 690 . . . . . . Explosions 311 | . . . . . . . . . . 311 . Melee . | . . . . . . . . . . . . Ramming 70 | . 8 . . . . . 6 . 20 23 13 Kinetic 639 | 55 283 76 . . . . . . 225 . . Thermal 776 | . . 24 . . 629 . 123 . . . . Explosive 311 | . . . . . . . . . . 311 . Electromagnetic 61 | . . . . . 61 . . . . . . Impact . | . . . . . . . . . . . . Slashing . | . . . . . . . . . . . . Piercing . | . . . . . . . . . . . . Highest Corruption 4 | . . . . . . . . . 2 2 4 Average Corruption 2 | . . . . . . . . . 2 2 2 Corruption Purged . | . . . . . . . . . . . . Corruption Blocked . | . . . . . . . . . . . . Effects 3 | . . . . . . . . . . 3 . Message Errors 1 | . . . . . . . . . . 1 . Energy Discharges 1 | . . . . . . . . . . 1 . Data Loss (major) 1 | . . . . . . . . . . 1 . Overload Shots . | . . . . . . . . . . . . Overflow Damage 1 | . . . . . 1 . . . . . . Projectiles 1 | . . . . . 1 . . . . . . Explosions . | . . . . . . . . . . . . Melee . | . . . . . . . . . . . . Knockbacks . | . . . . . . . . . . . . Impact . | . . . . . . . . . . . . Kinetic . | . . . . . . . . . . . . Secondary . | . . . . . . . . . . . . Self-Inflicted Damage 86 | . . . . . . . . . . 81 5 Shots 2 | . . . . . . . . . . 2 . Rammed 7 | . 1 . . . . . . . . . 6 Targets Rammed 13 | . 1 . . . . . 3 . 2 1 6 Kicked 6 | . . . . . . . 3 . 2 1 . Crushed . | . . . . . . . . . . . . Highest Temperature 197 | . 12 25 . . 197 . 48 . . 19 14 Average Temperature 77 | . 7 12 . . 108 . 23 . . 8 6 Received Heat Transfer 893 | . 42 80 . . 159 90 126 . 63 36 297 Siege Activations . | . . . . . . . . . . . . Robots Corrupted . | . . . . . . . . . . . . Combat Hostiles . | . . . . . . . . . . . . Parts Fried . | . . . . . . . . . . . . Impact Corruptions . | . . . . . . . . . . . . Robots Melted . | . . . . . . . . . . . . Combat Hostiles . | . . . . . . . . . . . . Parts Melted 2 | . . . . . 2 . . . . . . Heat Transferred 1265 | . . 50 . . 1110 . 105 . . . . Parts Sabotaged . | . . . . . . . . . . . . Parts Stolen . | . . . . . . . . . . . . Parts Stripped . | . . . . . . . . . . . . Power Chain Reactions . | . . . . . . . . . . . . Alert | -11 -10 -10 -10 -9 -8 -8 -7 -6 -6 -5 -5 ------- Run | Yrd Mat Min Exi Min Mat Gar Fac Fac DSF Fac Gar Peak Influence 211 | 5 103 107 . . 209 211 180 88 101 201 190 Initial 140 | . 3 2 . . . 36 110 88 65 47 140 Average 67 | 1 39 34 . . 106 94 84 88 87 60 155 Maximum Alert Level 1 | . . . . . 1 1 . . . 1 . Low Security (%) 99 | 100 100 100 . 100 98 96 100 100 100 99 100 Level 1 . | . . . . . 1 3 . . . . . Level 2 . | . . . . . . . . . . . . Level 3 . | . . . . . . . . . . . . Level 4 . | . . . . . . . . . . . . Level 5 . | . . . . . . . . . . . . High Security . | . . . . . . . . . . . . Max Security . | . . . . . . . . . . . . Squads Dispatched 14 | . 2 . . . 5 . 4 . 2 1 . Investigation 5 | . . . . . 1 . 3 . . 1 . Extermination 1 | . . . . . . . 1 . . . . Reinforcement 5 | . 2 . . . 1 . . . 2 . . Assault . | . . . . . . . . . . . . Garrison 3 | . . . . . 3 . . . . . . Intercept . | . . . . . . . . . . . . Searches Triggered . | . . . . . . . . . . . . Construction Impeded . | . . . . . . . . . . . . Haulers Reinforced . | . . . . . . . . . . . . Active Scanning Responses . | . . . . . . . . . . . . Cargo Convoy Interrupts . | . . . . . . . . . . . . Stealth | -11 -10 -10 -10 -9 -8 -8 -7 -6 -6 -5 -5 --------- Run | Yrd Mat Min Exi Min Mat Gar Fac Fac DSF Fac Gar Distress Signals 2 | . 1 . . . 1 . . . . . . Communications Jammed . | . . . . . . . . . . . . Distress Signals . | . . . . . . . . . . . . Times Spotted 136 | . 15 30 . . 24 16 14 . 8 11 18 Peak Tracking Total 20 | . 4 20 . . 5 16 7 . 6 9 16 Tactical Retreats 15 | . . 4 . . 2 2 3 . 1 1 2 Traps | -11 -10 -10 -10 -9 -8 -8 -7 -6 -6 -5 -5 ------- Run | Yrd Mat Min Exi Min Mat Gar Fac Fac DSF Fac Gar Traps Triggered 3 | . . . . . . . 1 . . 1 1 Indirectly . | . . . . . . . . . . . . Trap Hack Attempts . | . . . . . . . . . . . . Triggered . | . . . . . . . . . . . . Disarmed . | . . . . . . . . . . . . Reprogrammed . | . . . . . . . . . . . . Reused . | . . . . . . . . . . . . Traps Extracted . | . . . . . . . . . . . . Installed . | . . . . . . . . . . . . Triggered . | . . . . . . . . . . . . Machines | -11 -10 -10 -10 -9 -8 -8 -7 -6 -6 -5 -5 ---------- Run | Yrd Mat Min Exi Min Mat Gar Fac Fac DSF Fac Gar Machines Disabled 3 | . . . . . 2 . . . . 1 . Max in Single Turn 1 | . . . . . 1 . . . . 1 . Machines Repaired . | . . . . . . . . . . . . Machines Dismantled . | . . . . . . . . . . . . Machines Sabotaged . | . . . . . . . . . . . . Overloaded Fab Kills . | . . . . . . . . . . . . Hacking | -11 -10 -10 -10 -9 -8 -8 -7 -6 -6 -5 -5 --------- Run | Yrd Mat Min Exi Min Mat Gar Fac Fac DSF Fac Gar Machines Accessed 21 | . 6 1 . . 4 1 4 1 . 4 . Terminals 14 | . 5 . . . 3 1 3 1 . 1 . Fabricators 2 | . . . . . . . . . . 2 . Repair Stations 1 | . 1 . . . . . . . . . . Recycling Units 1 | . . . . . . . 1 . . . . Scanalyzers . | . . . . . . . . . . . . Garrison Access 2 | . . . . . 1 . . . . 1 . Total Hacks 43 | . 15 1 . . 7 2 7 1 . 10 . Successful 22 | . 11 1 . . 4 1 1 1 . 3 . Failed 21 | . 4 . . . 3 1 6 . . 7 . Catastrophic 5 | . . . . . . 1 3 . . 1 . Database Lockouts . | . . . . . . . . . . . . Manual 27 | . 12 . 1 . 6 2 3 . . 3 . Terminals 29 | . 13 . . . 6 2 6 1 . 1 . Fabricators 7 | . . . . . . . . . . 7 . Repair Stations 2 | . 2 . . . . . . . . . . Recycling Units 1 | . . . . . . . 1 . . . . Scanalyzers . | . . . . . . . . . . . . Garrison Access 3 | . . . . . 1 . . . . 2 . Terminal Hacks 6 | . 4 1 . . . . . 1 . . . Robot Analysis 3 | . 3 . . . . . . . . . . Open Door 1 | . . 1 . . . . . . . . . Open DSF 1 | . . . . . . . . 1 . . . Security Status 1 | . 1 . . . . . . . . . . Fabricator Hacks 1 | . . . . . . . . . . 1 . Build 1 | . . . . . . . . . . 1 . Repair Station Hacks 2 | . 2 . . . . . . . . . . Scan Component 1 | . 1 . . . . . . . . . . Repair 1 | . 1 . . . . . . . . . . Recycling Unit Hacks 1 | . . . . . . . 1 . . . . Retrieve Components 1 | . . . . . . . 1 . . . . Scanalyzer . | . . . . . . . . . . . . Garrison Access Hacks 2 | . . . . . 1 . . . . 1 . Unlock Access 2 | . . . . . 1 . . . . 1 . Unauthorized Hacks 10 | . 5 . . . 3 1 . . . 1 . Terminals 9 | . 5 . . . 3 1 . . . . . Assimilate 1 | . . . . . 1 . . . . . . Botnet 7 | . 5 . . . 2 . . . . . . Override 1 | . . . . . . 1 . . . . . Fabricators 1 | . . . . . . . . . . 1 . Liberate 1 | . . . . . . . . . . 1 . Repair Stations . | . . . . . . . . . . . . Recycling Units . | . . . . . . . . . . . . Scanalyzers . | . . . . . . . . . . . . Garrison Access . | . . . . . . . . . . . . Data Cores Recovered . | . . . . . . . . . . . . Used . | . . . . . . . . . . . . Hacking Detections 16 | . 5 . . . 2 1 3 1 . 4 . Full Trace Events 5 | . 1 . . . 1 . 2 . . 1 . Feedback Events . | . . . . . . . . . . . . Feedback Blocked . | . . . . . . . . . . . . Robot Schematics Acquired . | . . . . . . . . . . . . Robots Built . | . . . . . . . . . . . . Authchips . | . . . . . . . . . . . . Time . | . . . . . . . . . . . . Total Robot Build Rating . | . . . . . . . . . . . . Part Schematics Acquired . | . . . . . . . . . . . . Parts Built 2 | . . . . . . . . . . 2 . Authchips . | . . . . . . . . . . . . Time 106 | . . . . . . . . . . 106 . Total Part Build Rating 12 | . . . . . . . . . . 12 . Parts Repaired 1 | . 1 . . . . . . . . . . Time 26 | . 26 . . . . . . . . . . Parts Recycled . | . . . . . . . . . . . . Recycled Matter . | . . . . . . . . . . . . Retrieved Matter . | . . . . . . . . . . . . Retrieved Components . | . . . . . . . . . . . . Parts Scanalyzed . | . . . . . . . . . . . . Part Schematics Acquired . | . . . . . . . . . . . . Parts Damaged . | . . . . . . . . . . . . Bothacking | -11 -10 -10 -10 -9 -8 -8 -7 -6 -6 -5 -5 ------------ Run | Yrd Mat Min Exi Min Mat Gar Fac Fac DSF Fac Gar Used RIF Installer 1 | . . . . . . . . . . . 1 Robots Hacked 6 | . . . 6 . . . . . . . . Non-combat 3 | . . . 3 . . . . . . . . Combat 3 | . . . 3 . . . . . . . . Robot Hacks Applied 18 | . . . 18 . . . . . . . . parse_system 18 | . . . 18 . . . . . . . . Relay Couplers Released . | . . . . . . . . . . . . Fabnet Peak Effective % . | . . . . . . . . . . . . Robots Rewired . | . . . . . . . . . . . . Allies Hacked . | . . . . . . . . . . . . Hacks Repelled . | . . . . . . . . . . . . Allies | -11 -10 -10 -10 -9 -8 -8 -7 -6 -6 -5 -5 -------- Run | Yrd Mat Min Exi Min Mat Gar Fac Fac DSF Fac Gar Total Allies 4 | . . 4 . . . . . . . . . Largest Group 4 | . . 4 3 3 3 . . . . . . Highest-Rated Group 71 | . . 71 40 40 40 . . . . . . Highest-Rated Ally 31 | . . 31 16 16 16 . . . . . . Total Orders . | . . . . . . . . . . . . Ally Attacks 59 | . . 6 . . 53 . . . . . . Total Damage 661 | . . 71 . . 590 . . . . . . Kills 8 | . . 2 . . 6 . . . . . . Allies Corrupted . | . . . . . . . . . . . . Allies Melted . | . . . . . . . . . . . . Intel | -11 -10 -10 -10 -9 -8 -8 -7 -6 -6 -5 -5 ------- Run | Yrd Mat Min Exi Min Mat Gar Fac Fac DSF Fac Gar Robot Analysis Total 3 | . 3 . . . . . . . . . . Derelict Logs Recovered 1 | . . 1 . . . . . . . . . Drone Launches . | . . . . . . . . . . . . Drone Recoveries . | . . . . . . . . . . . . Exploration | -11 -10 -10 -10 -9 -8 -8 -7 -6 -6 -5 -5 ------------- Run | Yrd Mat Min Exi Min Mat Gar Fac Fac DSF Fac Gar Turns Passed 4598 | 77 857 739 376 58 876 62 681 24 165 574 109 Spaces Moved 3580 | 44 303 896 608 52 475 95 473 28 124 359 123 Core 1937 | 20 . 751 608 52 64 95 282 18 . . 47 Treads 287 | 24 263 . . . . . . . . . . Legs 591 | . . . . . 3 . 191 10 124 260 3 Wheels . | . . . . . . . . . . . . Hover 765 | . 40 145 . . 408 . . . . 99 73 Flight . | . . . . . . . . . . . . Fastest Speed 50 | 50 56 50 50 50 50 50 50 50 90 82 50 Average Speed 76 | 110 146 50 50 50 69 64 78 75 115 120 80 Slowest Speed 350 | 160 160 56 50 50 120 100 120 120 190 180 350 Overloaded Moves . | . . . . . . . . . . . . Propulsion Burnouts . | . . . . . . . . . . . . Robots Hopped . | . . . . . . . . . . . . Cave-ins Triggered . | . . . . . . . . . . . . Exploration Rate (%) 40 | 5 48 99 91 21 42 32 14 1 89 12 27 Regions Visited 11 Branch Regions 3 Pre-discovered Areas 1 | . . 1 . . . . . . . . . Known Exits Taken 7 | . . 1 1 1 1 . 1 1 . 1 . Unknown Exits Taken 2 | 1 1 . . . . . . . . . . Scrap Searched 1 | . . 1 . . . . . . . . . Spaces Dug 14 | . . 2 . . . . . . . 12 . Terrain Destroyed 29 | . . 2 . . . . . . 1 26 . Melee . | . . . . . . . . . . . . Projectile 3 | . . 2 . . . . . . 1 . . AOE 26 | . . . . . . . . . . 26 . Terrain Rammed . | . . . . . . . . . . . . Walls Destroyed . | . . . . . . . . . . . . Machines Disabled . | . . . . . . . . . . . . Actions | -11 -10 -10 -10 -9 -8 -8 -7 -6 -6 -5 -5 --------- Run | Yrd Mat Min Exi Min Mat Gar Fac Fac DSF Fac Gar Total 5282 | 63 671 1153 670 83 968 96 775 31 143 497 132 Wait 1453 | . 322 235 33 32 434 . 285 . . 111 1 Move 3569 | 43 302 895 607 51 475 94 472 28 123 358 121 Hop . | . . . . . . . . . . . . Pick Up 30 | 7 10 2 2 . 4 . 1 . . 4 . Fast Attach 39 | 1 2 1 3 . 10 . 5 1 9 7 . Attach 25 | 6 1 4 1 . 5 . . 1 2 2 3 Detach 7 | . . . . . 3 . . 1 2 . 1 Swap 5 | . 1 1 . . 1 . . . 1 1 . Drop 39 | . 4 3 5 . 9 2 3 . 2 11 . Fire 81 | 6 28 12 . . 27 . 6 . . 2 . Melee 19 | . . . 19 . . . . . . . . Ram 6 | . . . . . . . . . . . 6 Kick 6 | . . . . . . . 3 . 2 1 . Crush 1 | . 1 . . . . . . . . . . Escape Stasis . | . . . . . . . . . . . . Rewire 2 | . . . . . . . . . 2 . . Trap . | . . . . . . . . . . . . Miscellaneous . | . . . . . . . . . . . . Route ------- -11/Scrapyard -10/Materials (discovered 2 exits: *Mat / *Min) -10/Mines (discovered 4 exits: *Mat x2 / *Exi / *Sub) -10/Exiles (discovered 2 exits: *Min x2) -9/Mines -8/Materials (discovered 2 exits: *Fac / Gar) -8/Garrison (discovered 3 exits: *Fac x3) -7/Factory -6/Factory -6/DSF -5/Factory -5/Garrison (discovered 1 exit: [*Fac]) History --------- Turn | Location | Event 15 | -11/Scrapyard | Discovered new exit (range 15) 78 | -11/Scrapyard | Entered Materials 308 | -10/Materials | Build established: Mutant 348 | -10/Materials | Discovered new exit (range 3) 925 | -10/Materials | Repaired Datajack 927 | -10/Materials | Discovered new exit (range 13) 935 | -10/Materials | Entered Mines 944 | -10/Mines | Discovered new exit (range 8) 1040 | -10/Mines | Learned location of Recycling (-8) 1050 | -10/Mines | Assembled infested the area 1068 | -10/Mines | Released all parts (2) 1085 | -10/Mines | Core integrity fell below 50% 1256 | -10/Mines | Assisted by bots powering up and referring to "LRC-V3" 1262 | -10/Mines | Discovered new exit (range 14) 1269 | -10/Mines | Received a Mining Laser from a helpful Derelict 1278 | -10/Mines | Identified exit to Materials 1407 | -10/Mines | Found the Drone Emporium 1414 | -10/Mines | Found Prototype Device 1485 | -10/Mines | Discovered new exit (range 10) 1494 | -10/Mines | Identified exit to Subcaves 1653 | -10/Mines | Deemed a non-threat by the Exiles lab entrance 1653 | -10/Mines | Discovered new exit (range 5) 1655 | -10/Mines | Identified exit to Exiles 1674 | -10/Mines | Entered Exiles 1674 | -10/Exiles | Accompanied by 3 allies 1682 | -10/Exiles | Discovered new exit (range 15) 1690 | -10/Exiles | Met 8R-AWN 1700 | -10/Exiles | Identified exit to Mines 1718 | -10/Exiles | Met EX-HEX 1732 | -10/Exiles | Met EX-BIN 1739 | -10/Exiles | Aligned with FarCom system 1739 | -10/Exiles | Given EX-Vault access code 1751 | -10/Exiles | Opened EX-Vault 1761 | -10/Exiles | Found Prototype Ballistic Gun 1761 | -10/Exiles | Identified AWS/Gauss 1786 | -10/Exiles | Warned to stay clear of 0b10 Research branches 1849 | -10/Exiles | Met EX-DEC 1862 | -10/Exiles | Visited The Gauntlet 2021 | -10/Exiles | Discovered exit to Mines (range 10) 2050 | -10/Exiles | Left Exiles lab with AWS/Gauss 2050 | -10/Exiles | Entered Mines 2050 | -9/Mines | Accompanied by 3 allies 2073 | -9/Mines | Discovered new exit (range 6) 2093 | -9/Mines | Identified exit to Materials 2108 | -9/Mines | Entered Materials 2108 | -8/Materials | Accompanied by 3 allies 2108 | -8/Materials | Evolved 4 slots: Propulsion x2, Utility x2 2110 | -8/Materials | Identified Bomb Drone Bay 2584 | -8/Materials | Garrison activated, responded to threat 2966 | -8/Materials | Discovered new exit (range 16) 2984 | -8/Materials | Identified exit to Garrison 2984 | -8/Materials | Entered Garrison 3019 | -8/Garrison | Triggered checkpoint 3022 | -8/Garrison | Triggered checkpoint 3026 | -8/Garrison | Identified exit to Factory 3046 | -8/Garrison | Entered Factory 3046 | -7/Factory | Evolved 2 slots: Propulsion x2 3629 | -7/Factory | Lost 3 parts (1n2u) 3652 | -7/Factory | Core integrity fell below 50% 3710 | -7/Factory | Discovered new exit (range 16) 3717 | -7/Factory | Identified exit to Factory 3727 | -7/Factory | Entered another Factory area 3727 | -6/Factory | Evolved 2 slots: Utility x2 3751 | -6/Factory | Identified exit to DSF 3751 | -6/Factory | Entered DSF 3780 | -6/DSF | Additional patrols routed to DSF 3902 | -6/DSF | Discovered new exit (range 15) 3915 | -6/DSF | Identified exit to Factory 3916 | -6/DSF | Entered Factory 3916 | -5/Factory | Evolved 2 slots: Utility x2 4130 | -5/Factory | Fabricated Disruptor Cannon (x2) 4484 | -5/Factory | Identified exit to Garrison 4490 | -5/Factory | Entered Garrison 4517 | -5/Garrison | Lost 3 parts (1p1n1u) 4573 | -5/Garrison | Released all parts (4) 4574 | -5/Garrison | Discovered new exit (range 14) 4581 | -5/Garrison | Attempted to access garrison exit controls, blocked by remote lockdown 4582 | -5/Garrison | Core integrity fell below 50% 4585 | -5/Garrison | Installed Relay Interface Framework 4597 | -5/Garrison | Core integrity fell below 20% 4599 | -5/Garrison | Destroyed by G-50 Soldier with Heavy Laser Last Messages --------------- 04569_ Imp. VSS Leg destroyed. 04572_ P-70 Sage resets S-27 Virus, system corruption cleaned. 04573_ Lyr. Heavy Armor Plating destroyed. 04573_ Released Adv. Signal Interpreter. 04573_ Released Adv. Targeting Computer. 04573_ Released Machine Analyzer. 04573_ Released Broken Gyrokinetic Inverter. 04574_ EXIT=FOUND 04576_ Penetrated by Slug. 04581_ Attempting to access garrison exit controls... 04581_ Remote lockdown engaged. 04581_ Penetrated by Slug. Initiating installation procedure... 04585_ Relay Interface Framework installed. 04586_ Triggered Alarm Trap. 04586_ An alarm sounds. 04587_ Slammed into S-27 Virus. 04594_ Penetrated by Slug. 04594_ Critical hit (Burn: +37). 04596_ Slug penetrates Wall. Map ----- +----------------------------------------------------+ | | | | | | | | | | | ?????????????????????????????????????????????????? | | ?????????????????????????????????????????????????? | | ?????????????????????????????????????????????????? | | ?????????????????????????????????????????????????? | | ?????????????????????????????????????????????????? | | ?????????????????????????????????????????????????? | | ?????????????????????????????????????????????????? | | ?????????????????????????????????????????????????? | | ????????????????#????##############??????????????? | | ???????????????## ### ## """"#??????????????? | | ???????????????# < s "#??????????????? | | ???????????????# ## ## """"#??????????????? | | ???????????????## #?###sp ########??????????????? | | ????????????????###????# s #?????????????????????? | | ???????????????????????# #?????????????????????? | | ???????????????????????# Y#?????????????????????? | | ???????????????????????# #?????????????????????? | | ???????????????????????# #?????????????????????? | | ???????????????????????# #?????????????????????? | | ???????????????????????# g##????????????????????? | | ?????????????????????Y?# @ #????????????????????? | | ?????????????h?????????#ggg##????????????????????? | | ???????????????????????# g #?????????????????????? | | ???????????????????????#g g#?????????????????????? | | ???????????????????????# #?????????????????????? | | ???????????????????????#g g#?????????????????????? | | ??????????????h????????# = #?????????????????????? | | ?????????????????????# #?????????????????????? | | ?????????????????????# #?????????????????????? | | ?????????????????????# #?????????????????????? | | #????????????????????# #?????????????????????? | | #??????????????####### #???x?????????????????? | | #???????? + #?????????????????????? | | #??????????????## #### #?????????????????????? | | #????????????????????# #?????????????????????? | | #???????????????#+#### #####?????????????????? | | #???????????????# #??????????????? | | #???????????????# #### #######???????????????? | | #???????????????# #??# #?????????????????????? | | #???????????????# #??# #?????????????????????? | | #######?????????# #??# #?????????????????????? | | ## #?????????# #??# #?????????????????????? | | ## ########### #### #?????????????????????? | | #?????????????????????? | | #?????????????????????? | +----------------------------------------------------+ Best States ------------- Heat Dissipation 45 Coolant Potential 50 Energy Generation 16 Energy Capacity 290 Matter Stores 300 Matter Capacity 300 Sight Range 16 Terrain Scan Density 10 ECM Strength 1 Additional Mass Support 9 Armor Coverage 600 Evasion (%) 57 Targeting Accuracy 8 Recoil Reduction 2 Item Schematics ----------------- None Robot Schematics ------------------ None Fabricated ------------ Disruptor Cannon | x2 | -5/Factory | Preloaded Alien Tech Used ----------------- None Achievements -------------- None Challenges ------------ None Game ------ Seed PhysicsLaserGreatsword Manual? 0 Play Time 00:52:14 Cumulative 56.8 hours Start 2024.11.02 @ 21:40:31 End 2024.11.02 @ 22:30:15 Sessions 1 Manual Loads 0 Difficulty Rogue Special Mode None Game No. 96 Rogue 96 Adventurer 0 Explorer 0 Win Type - Total 0 Types 0/0/0/0/0/0/0/0/0 Lore% 18 Gallery% 36 Achievement% 32 Wizard Run 0 Options --------- Layout 0 ASCII 0 Keyboard 0 Movement Mouse Keybinds 0 Fullscreen 2 Font 18/SmallcapsGlow Map View 38x25 Zoom Use 95% Tactical HUD 1 Map Filters NONE Filters NONE Steam 1 RUN: 0994d573-dc37-4b0c-8342-d6846d5f4cd3